bitfinex/quotes_SOLUSD_20251106
["timestamp","ask_amount","ask_price","bid_price","bid_amount"]
[1762451734460,0.66,157.46,157.42,7.90618371]
[1762451734849,0.66,157.46,157.43,7.90618371]
[1762451735474,0.66,157.46,157.39,7.58]
[1762451735475,0.66,157.46,157.42,7.90618371]
[1762451735673,7.01011844,157.48,157.45,7.90618371]
[1762451735982,9.78882769,157.47,157.44,7.90618371]
[1762451736159,10.44882769,157.47,157.45,7.90618371]
[1762451736548,28.49818371,157.5,157.45,7.90618371]
[1762451736549,0.66,157.46,157.45,7.90618371]
[1762451736752,9.78882769,157.48,157.45,7.90618371]
[1762451737187,0.71,157.47,157.45,7.90618371]
[1762451737978,7.06041595,157.47,157.43,20.0]
[1762451738184,9.78882769,157.46,157.44,7.90618371]
[1762451738389,10.49882769,157.46,157.44,7.90618371]
[1762451738683,0.71,157.45,157.44,7.90618371]
[1762451738984,9.78882769,157.47,157.44,7.90618371]
[1762451739183,10.49882769,157.47,157.44,7.90618371]
[1762451739479,16.84930464,157.47,157.44,7.90618371]
[1762451739779,16.13930464,157.47,157.45,7.90618371]
[1762451739970,16.13930464,157.47,157.43,20.0]
[1762451739971,16.84930464,157.47,157.46,7.90618371]
[1762451740171,16.84930464,157.47,157.45,7.90618371]
[1762451741055,16.13930464,157.47,157.44,7.90618371]
[1762451741258,0.71,157.46,157.43,27.90618371]
[1762451741478,8.61618371,157.46,157.43,20.0]
[1762451741674,9.78882769,157.44,157.43,20.0]
[1762451741866,9.78882769,157.44,157.43,27.90618371]
[1762451742067,10.49882769,157.44,157.43,27.90618371]
[1762451742280,10.49882769,157.47,157.43,27.90618371]
[1762451742481,10.49882769,157.46,157.43,27.90618371]
[1762451742868,0.71,157.45,157.43,20.0]
[1762451743582,125.12526403,157.48,157.44,7.90618371]
[1762451743784,9.78882769,157.46,157.44,7.90618371]
[1762451743983,0.71,157.47,157.45,7.90618371]
[1762451744186,16.84940333,157.47,157.44,7.90618371]
[1762451744683,102.9,157.48,157.46,7.90618371]
[1762451744863,102.9,157.48,157.47,7.90618371]
[1762451745279,102.9,157.48,157.46,7.90618371]
[1762451745468,102.9,157.48,157.44,7.90618371]
[1762451745469,10.49882769,157.47,157.44,7.90618371]
[1762451745877,10.49882769,157.47,157.45,7.90618371]
[1762451746194,102.9,157.48,157.46,7.90618371]
[1762451746672,103.61,157.48,157.46,7.90618371]
[1762451746885,103.61,157.48,157.45,7.90618371]
[1762451747187,103.61,157.48,157.46,7.90618371]
[1762451747390,82.9,157.48,157.47,7.90618371]
[1762451747592,10.49882769,157.51,157.47,15.46618371]
[1762451747765,26.94054054,157.52,157.49,7.90618371]
[1762451747766,6.34854054,157.52,157.49,7.90618371]
[1762451747967,9.78882769,157.54,157.51,7.90618371]
[1762451748161,0.71,157.53,157.47,7.56]
[1762451748489,0.71,157.53,157.48,7.90618371]
[1762451748678,0.71,157.53,157.49,7.90618371]
[1762451748881,0.71,157.53,157.5,7.90618371]
[1762451749261,0.1,157.59,157.52,7.90618371]
[1762451749592,7.15562626,157.59,157.55,7.90618371]
[1762451749764,0.71,157.58,157.52,7.56]
[1762451749968,0.71,157.58,157.53,7.90618371]
[1762451750486,0.71,157.58,157.54,7.90618371]
[1762451750991,7.0560001,157.58,157.54,7.90618371]
[1762451751376,0.71,157.57,157.54,7.90618371]
[1762451751577,7.90618371,157.55,157.38,50.0]
[1762451751883,7.90618371,157.52,157.45,57.90618371]
[1762451752286,22.93081137,157.51,157.45,57.90618371]
[1762451752688,0.69,157.5,157.45,64.25740553]
[1762451752889,0.69,157.5,157.46,7.90618371]
[1762451753397,0.69,157.5,157.45,64.43122182]
[1762451753996,6.34960949,157.49,157.45,63.91122182]
[1762451754381,6.34960949,157.49,157.45,57.56]
[1762451754868,6.34960949,157.49,157.45,7.56]
[1762451755076,7.03960949,157.49,157.45,7.56]
[1762451756293,6.34960949,157.49,157.45,13.91110684]
[1762451756593,7.03960949,157.49,157.45,7.56]
[1762451757099,6.34960949,157.49,157.45,13.91117937]
[1762451757271,6.34960949,157.49,157.45,7.56]
[1762451757472,7.03960949,157.49,157.45,7.56]
[1762451757700,0.69,157.49,157.45,13.91106416]
[1762451758100,7.03968923,157.49,157.45,7.56]
[1762451759009,82.9,157.5,157.45,29.78921882]
[1762451759303,0.69,157.52,157.46,8.42618371]
[1762451759479,0.69,157.52,157.45,57.56]
[1762451759675,7.90618371,157.5,157.45,57.56]
[1762451760102,6.34960949,157.49,157.45,63.9111794]
[1762451760319,6.34960949,157.49,157.45,57.56]
[1762451760485,7.03960949,157.49,157.45,57.56]
[1762451760684,0.69,157.48,157.45,57.56]
[1762451760899,5.72660911,157.48,157.45,57.56]
[1762451761402,5.03660911,157.48,157.45,57.56]
[1762451762104,11.38662823,157.48,157.45,57.56]
[1762451762402,12.07662823,157.48,157.45,57.56]
[1762451763183,12.07662823,157.48,157.39,5.03660911]
[1762451763184,5.03660911,157.46,157.38,50.0]
[1762451763384,0.69,157.47,157.42,50.0]
[1762451763810,12.0762186,157.49,157.43,7.56]
[1762451764005,6.34935163,157.5,157.45,6.35122261]
[1762451764212,89.24935163,157.5,157.45,6.35122261]
[1762451764591,0.69,157.49,157.44,56.35152423]
[1762451765785,12.07649271,157.49,157.44,50.0]
[1762451765996,12.07649271,157.49,157.44,56.35159607]
[1762451766305,0.69,157.48,157.44,56.35159607]
[1762451767632,7.04011785,157.48,157.44,56.35159607]
[1762451767918,0.69,157.48,157.44,56.35159607]
[1762451769110,7.04008813,157.48,157.43,13.91202919]
[1762451769625,11.3876638,157.46,157.43,7.56]
[1762451770118,0.69,157.45,157.43,7.56]
[1762451770321,5.03660911,157.44,157.43,7.56]
[1762451771138,5.72660911,157.44,157.4,50.0]
[1762451771326,5.72660911,157.44,157.41,7.56]
[1762451771627,12.07835818,157.44,157.41,7.56]
[1762451772206,0.69,157.44,157.41,7.56]
[1762451772404,7.04168941,157.44,157.41,7.56]
[1762451774227,0.69,157.44,157.41,7.56]
[1762451774401,10.47882769,157.47,157.41,14.43266642]
[1762451774733,0.69,157.51,157.45,5.03660911]
[1762451774926,0.69,157.51,157.47,5.03660911]
[1762451775615,7.03770861,157.54,157.5,5.03660911]
[1762451775825,6.34730709,157.55,157.5,7.56]
[1762451776034,5.13660911,157.59,157.52,5.03660911]
[1762451776210,5.13660911,157.59,157.54,5.03660911]
[1762451776211,6.34598299,157.58,157.54,5.03660911]
[1762451776410,9.78882769,157.57,157.54,12.59660911]
[1762451776716,0.69,157.57,157.54,7.56]
[1762451777029,6.34598299,157.58,157.54,12.59660911]
[1762451777222,7.03598299,157.58,157.54,12.59660911]
[1762451777424,22.21094047,157.58,157.54,7.56]
[1762451777641,6.34759426,157.54,157.51,7.56]
[1762451778135,7.03759426,157.54,157.51,7.56]
[1762451779110,0.69,157.53,157.51,7.56]
[1762451779617,9.78882769,157.5,157.44,50.0]
[1762451779820,9.78882769,157.48,157.46,7.56]
[1762451780230,10.47882769,157.48,157.46,7.56]
[1762451780634,0.69,157.47,157.43,7.56]
[1762451781020,5.72660911,157.47,157.43,7.56]
[1762451781344,0.69,157.47,157.43,7.56]
[1762451782047,7.04071942,157.47,157.43,7.56]
[1762451782456,9.78882769,157.46,157.43,7.56]
[1762451782745,10.46882769,157.46,157.43,7.56]
[1762451783121,14.8254368,157.46,157.43,7.56]
[1762451783317,5.03660911,157.44,157.37,50.0]
[1762451783531,5.03660911,157.42,157.38,7.56]
[1762451783725,5.71660911,157.42,157.38,7.56]
[1762451783937,6.35283654,157.41,157.38,7.56]
[1762451784124,9.78882769,157.43,157.38,8.08]
[1762451784327,0.68,157.44,157.38,19.47064065]
[1762451784945,0.68,157.44,157.38,14.43403154]
[1762451785139,12.06829036,157.44,157.38,14.43403154]
[1762451785342,12.06829036,157.44,157.38,14.43398022]
[1762451785731,7.03168125,157.44,157.38,14.43398022]
[1762451786045,12.06829036,157.44,157.38,14.43398022]
[1762451786242,12.06829036,157.44,157.38,13.91398022]
[1762451786439,14.8254368,157.42,157.36,0.52]
[1762451786739,5.03660911,157.38,157.32,0.52]
[1762451786950,5.03660911,157.38,157.33,7.56]
[1762451787251,10.46882769,157.38,157.33,13.9158587]
[1762451787558,5.71660911,157.4,157.33,68.95246781]
[1762451787846,9.78882769,157.39,157.33,69.47246781]
[1762451788048,16.82263376,157.39,157.33,69.47246781]
[1762451788953,16.82263376,157.39,157.33,64.4358587]
[1762451789139,0.68,157.41,157.35,55.03660911]
[1762451789336,0.68,157.41,157.35,50.0]
[1762451789537,12.06953473,157.41,157.35,50.0]
[1762451789846,5.03660911,157.39,157.33,113.9158587]
[1762451790050,21.85874613,157.4,157.33,118.95246781]
[1762451790362,16.82213702,157.4,157.34,5.03660911]
[1762451790739,0.68,157.39,157.33,57.56]
[1762451790955,0.68,157.39,157.35,50.0]
[1762451791132,6.35330933,157.4,157.35,50.0]
[1762451791438,0.68,157.39,157.35,50.0]
[1762451792429,7.03379733,157.39,157.35,56.35519982]
[1762451792835,0.68,157.38,157.33,58.08]
[1762451793078,0.68,157.38,157.31,50.0]
[1762451793079,5.03660911,157.35,157.31,50.0]
[1762451793374,5.03660911,157.33,157.3,7.56]
[1762451793732,5.71660911,157.33,157.3,7.56]
[1762451794761,12.07273326,157.33,157.3,7.56]
[1762451794946,27.28290042,157.33,157.29,0.2]
[1762451795146,5.03660911,157.31,157.29,0.2]
[1762451795342,0.68,157.3,157.29,0.2]
[1762451795941,9.78882769,157.32,157.29,0.2]
[1762451796141,14.8254368,157.35,157.29,7.07762111]
[1762451796364,5.71660911,157.34,157.29,6.55762111]
[1762451796576,0.68,157.34,157.29,6.55762111]
[1762451796744,0.66,157.33,157.29,6.55762111]
[1762451797645,0.66,157.33,157.29,0.2]
[1762451797840,5.69660911,157.33,157.29,0.2]
[1762451798054,0.66,157.33,157.29,6.55767435]
[1762451799162,0.66,157.33,157.29,0.2]
[1762451799163,12.05272251,157.33,157.29,0.2]
[1762451799555,0.66,157.32,157.29,0.2]
[1762451799759,0.66,157.33,157.29,0.2]
[1762451800161,0.66,157.33,157.29,6.55756457]
[1762451800341,15.4854368,157.35,157.29,6.55756457]
[1762451800541,15.4854368,157.35,157.29,14.11756457]
[1762451800767,21.84074104,157.35,157.29,14.11756457]
[1762451800979,5.69660911,157.34,157.29,14.11756457]
[1762451801471,0.66,157.33,157.29,14.11756457]
[1762451803279,5.03660911,157.34,157.29,80.53177272]
[1762451803460,5.03660911,157.34,157.29,80.01177272]
[1762451803769,0.66,157.34,157.29,80.01177272]
[1762451803971,5.03660911,157.34,157.29,80.01177272]
[1762451804179,5.03660911,157.36,157.31,50.0]
[1762451804376,5.03660911,157.38,157.31,100.0]
[1762451804667,5.03660911,157.38,157.29,55.64038183]
[1762451804668,9.78882769,157.4,157.35,5.03660911]
[1762451804873,0.66,157.4,157.35,13.11660911]
[1762451805374,0.66,157.4,157.36,5.03660911]
[1762451805881,12.04990125,157.4,157.35,7.56]
[1762451806048,5.03660911,157.36,157.32,7.56]
[1762451806249,5.03660911,157.34,157.3,20.592]
[1762451806747,9.78882769,157.35,157.3,11.91379839]
[1762451807260,10.44882769,157.35,157.3,5.55660911]
[1762451807448,10.44882769,157.35,157.29,69.15413959]
[1762451807649,10.44882769,157.35,157.3,5.03660911]
[1762451807874,0.66,157.38,157.33,5.03660911]
[1762451808049,10.44882769,157.41,157.35,5.03660911]
[1762451808370,14.8254368,157.41,157.34,63.11660911]
[1762451808578,14.8254368,157.41,157.35,5.03660911]
[1762451808760,0.66,157.4,157.35,5.03660911]
[1762451809080,9.78882769,157.39,157.34,57.56]
[1762451809252,9.78882769,157.39,157.34,68.95190458]
[1762451809448,10.44882769,157.39,157.34,68.95190458]
[1762451809650,93.34882769,157.39,157.34,68.95190458]
[1762451810279,92.68882769,157.39,157.34,68.95190458]
[1762451810479,0.66,157.38,157.34,68.95190458]
[1762451810749,0.66,157.38,157.34,63.91529547]
[1762451811049,0.66,157.38,157.34,68.95190458]
[1762451811452,5.03660911,157.42,157.36,50.0]
[1762451811651,22.89081076,157.44,157.38,50.0]
[1762451811878,0.66,157.43,157.38,57.56]
[1762451812071,5.03660911,157.41,157.38,7.56]
[1762451812574,0.7,157.4,157.38,7.56]
[1762451813274,11.38835483,157.44,157.39,0.52]
[1762451813485,9.78882769,157.43,157.38,57.56]
[1762451813660,10.48882769,157.43,157.38,57.56]
[1762451813979,0.7,157.42,157.38,57.56]
[1762451814367,6.35174572,157.44,157.38,64.43391751]
[1762451814553,12.08835483,157.44,157.38,58.08]
[1762451814755,5.03660911,157.43,157.38,58.08]
[1762451815256,0.7,157.43,157.38,58.08]
[1762451815480,0.7,157.43,157.38,64.43393552]
[1762451816687,30.38082769,157.46,157.38,79.79905434]
[1762451816854,9.78882769,157.45,157.39,5.55660911]
[1762451817186,32.67947307,157.46,157.41,50.0]
[1762451817187,7.05086396,157.46,157.41,50.0]
[1762451817473,12.08747307,157.46,157.41,50.0]
[1762451817861,5.03660911,157.44,157.39,50.0]
[1762451818065,5.03660911,157.43,157.38,7.56]
[1762451818268,5.03660911,157.42,157.38,7.56]
[1762451818477,5.73660911,157.42,157.38,7.56]
[1762451819155,0.7,157.45,157.39,55.55660911]
[1762451820091,7.05125516,157.45,157.4,6.35324015]
[1762451820392,0.7,157.45,157.4,6.35324015]
[1762451820591,6.35126494,157.45,157.39,61.91017979]
[1762451820773,5.73660911,157.44,157.39,56.87357068]
[1762451821294,0.7,157.43,157.39,7.56]
[1762451821791,6.35126494,157.45,157.4,0.52]
[1762451821980,12.08787405,157.45,157.39,57.56]
[1762451822179,5.03660911,157.43,157.39,57.56]
[1762451822385,7.92151609,157.42,157.39,57.56]
[1762451822571,7.92151609,157.42,157.39,7.56]
[1762451822572,90.82151609,157.42,157.39,7.56]
[1762451822769,83.6,157.42,157.39,7.56]
[1762451823586,18.41034378,157.41,157.39,7.56]
[1762451823774,7.92151609,157.4,157.36,7.56]
[1762451824192,0.7,157.4,157.36,13.91463258]
[1762451824399,82.9,157.42,157.36,13.91463258]
[1762451824400,90.82151609,157.42,157.37,50.52]
[1762451824690,7.92151609,157.41,157.37,50.0]
[1762451824895,17.71034378,157.41,157.37,50.0]
[1762451825202,7.92151609,157.38,157.33,58.08]
[1762451825394,7.92151609,157.36,157.33,57.56]
[1762451825773,7.92151609,157.37,157.33,63.91602475]
[1762451826095,7.92151609,157.35,157.33,7.56]
[1762451826264,6.35500322,157.36,157.33,7.56]
[1762451826469,14.27651931,157.36,157.33,7.56]
[1762451826891,7.92151609,157.35,157.33,7.56]
[1762451827064,7.92151609,157.34,157.33,7.56]
[1762451827271,8.62151609,157.34,157.29,57.07741133]
[1762451827583,7.92151609,157.33,157.3,7.56]
[1762451828097,7.92151609,157.31,157.3,7.56]
[1762451828476,14.27839105,157.31,157.3,7.56]
[1762451828678,7.92151609,157.31,157.3,7.56]
[1762451828877,7.92151609,157.32,157.3,7.56]
[1762451829169,8.62151609,157.32,157.3,7.56]
[1762451829379,14.97806827,157.32,157.3,7.56]
[1762451829702,7.92151609,157.31,157.3,7.56]
[1762451830296,14.97806827,157.32,157.3,7.56]
[1762451830595,8.62151609,157.32,157.3,7.56]
[1762451830796,14.97803296,157.32,157.29,0.2]
[1762451831105,7.92151609,157.31,157.29,0.2]
[1762451831294,6.35651687,157.32,157.29,0.2]
[1762451831295,14.97803296,157.32,157.29,0.2]
[1762451831598,7.92151609,157.31,157.29,0.2]
[1762451831796,14.97803296,157.32,157.29,0.2]
[1762451831972,7.92151609,157.31,157.29,0.2]
[1762451832172,14.97803296,157.32,157.29,0.2]
[1762451832471,0.7,157.31,157.29,0.2]
[1762451832889,8.62151609,157.31,157.29,0.2]
[1762451833194,83.6,157.31,157.29,0.2]
[1762451833382,82.9,157.31,157.29,0.2]
[1762451833770,82.9,157.31,157.29,6.55765467]
[1762451833997,0.7,157.37,157.32,50.0]
[1762451834200,89.25368298,157.39,157.34,7.92151609]
[1762451834397,89.25368298,157.39,157.35,6.35525897]
[1762451834695,89.95368298,157.39,157.35,6.35525897]
[1762451834894,83.6,157.39,157.35,6.35525897]
[1762451835090,89.95365634,157.39,157.34,14.7970734]
[1762451835288,0.7,157.38,157.34,6.35555731]
[1762451835896,8.62151609,157.38,157.33,7.56]
[1762451836477,8.62151609,157.38,157.33,14.43592235]
[1762451836976,0.7,157.38,157.33,22.35743844]
[1762451838313,0.7,157.38,157.33,21.83754692]
[1762451838496,82.9,157.39,157.34,50.52]
[1762451838805,82.9,157.39,157.34,58.44151609]
[1762451838983,82.9,157.39,157.35,8.44151609]
[1762451839804,8.62151609,157.43,157.37,7.92151609]
[1762451839984,7.05215159,157.43,157.38,65.48151609]
[1762451840617,7.05215159,157.43,157.39,6.35364381]
[1762451841403,7.05215159,157.43,157.38,64.43391405]
[1762451841591,7.05215159,157.43,157.38,72.35543014]
[1762451841787,31.08082769,157.45,157.38,63.91391405]
[1762451842004,8.62151609,157.44,157.38,72.35543014]
[1762451842387,8.62151609,157.44,157.39,7.92151609]
[1762451842587,14.97335619,157.44,157.39,14.27487338]
[1762451842789,0.67,157.43,157.39,14.27487338]
[1762451844086,6.35168376,157.44,157.39,8.44151609]
[1762451844303,0.67,157.43,157.38,63.91398849]
[1762451844613,0.67,157.43,157.39,7.92151609]
[1762451844910,8.59151609,157.43,157.38,64.43384935]
[1762451845211,7.92151609,157.41,157.38,7.56]
[1762451845711,0.67,157.41,157.38,13.91399923]
[1762451846096,0.67,157.41,157.38,7.56]
[1762451846097,14.94450485,157.41,157.38,7.56]
[1762451846305,7.92151609,157.4,157.38,7.56]
[1762451846521,8.59151609,157.39,157.38,7.56]
[1762451846687,18.38034378,157.39,157.35,7.56]
[1762451846888,82.9,157.46,157.39,50.0]
[1762451847202,18.38034378,157.45,157.4,15.48151609]
[1762451847401,8.59151609,157.45,157.4,15.48151609]
[1762451847914,14.94288123,157.45,157.41,6.35283654]
[1762451848298,7.02136514,157.45,157.41,6.35283654]
[1762451848615,7.02136514,157.45,157.41,15.48151609]
[1762451848797,7.92151609,157.43,157.41,7.56]
[1762451849293,8.59151609,157.43,157.41,7.56]
[1762451849507,22.22942166,157.45,157.41,7.56]
[1762451849508,0.67,157.45,157.41,7.56]
[1762451849694,6.35136922,157.45,157.41,16.00151609]
[1762451849899,7.02136922,157.45,157.41,15.48151609]
[1762451850392,6.35136922,157.45,157.41,22.35425582]
[1762451850591,7.02136922,157.45,157.41,21.83425582]
[1762451850787,97.17240198,157.46,157.41,14.43273973]
[1762451851091,0.67,157.45,157.41,21.83425582]
[1762451851512,0.67,157.45,157.42,7.92151609]
[1762451851719,0.67,157.45,157.41,15.48151609]
[1762451851890,7.02127462,157.45,157.41,21.83425956]
[1762451852092,7.02124695,157.45,157.41,21.83425956]
[1762451852402,14.94276304,157.45,157.41,7.56]
[1762451852719,7.02124695,157.45,157.41,21.83413095]
[1762451852894,0.67,157.45,157.41,21.83413095]
[1762451853417,0.67,157.45,157.42,7.92151609]
[1762451853622,0.67,157.45,157.41,21.83413095]
[1762451854823,82.9,157.44,157.41,21.83413095]
[1762451855120,82.9,157.44,157.41,15.48151609]
[1762451855294,82.9,157.44,157.41,21.83419873]
[1762451855695,82.9,157.44,157.41,15.48151609]
[1762451856598,82.9,157.44,157.41,7.56]
[1762451857227,89.94164271,157.44,157.41,7.56]
[1762451858298,83.59,157.44,157.41,7.56]
[1762451858715,83.59,157.44,157.41,15.48151609]
[1762451859237,83.59,157.44,157.41,21.83427141]
[1762451859702,82.9,157.44,157.41,13.91275532]
[1762451859903,83.59,157.44,157.41,13.91275532]
[1762451860835,17.71034378,157.42,157.35,106.35510455]
[1762451861003,7.92151609,157.41,157.36,15.46151609]
[1762451861201,7.92151609,157.4,157.36,7.54]
[1762451861417,10.47882769,157.4,157.36,15.46151609]
[1762451861715,0.69,157.39,157.36,15.46151609]
[1762451862112,0.69,157.39,157.36,7.54]
[1762451863124,0.69,157.39,157.36,15.46151609]
[1762451863327,7.04376865,157.39,157.36,7.54]
[1762451863712,0.69,157.38,157.36,7.54]
[1762451865105,4.05190277,157.38,157.36,7.54]
[1762451865515,0.69,157.37,157.36,7.54]
[1762451865702,0.69,157.37,157.31,0.52]
[1762451865703,9.78882769,157.36,157.31,0.52]
[1762451865903,0.69,157.37,157.31,50.52]
[1762451866208,16.83253124,157.39,157.33,53.36190277]
[1762451866518,8.61583908,157.38,157.34,7.54]
[1762451866703,7.92583908,157.36,157.34,7.54]
[1762451866904,7.92583908,157.35,157.34,7.54]
[1762451867132,8.61583908,157.36,157.34,7.54]
[1762451867326,14.28109805,157.35,157.34,7.54]
[1762451867527,14.28109805,157.35,157.31,7.54]
[1762451867528,14.97109805,157.35,157.31,7.54]
[1762451867937,14.28109805,157.35,157.31,7.54]
[1762451868103,8.61583908,157.35,157.31,7.54]
[1762451868420,0.69,157.35,157.31,7.54]
[1762451868805,14.28071703,157.36,157.31,15.98583908]
[1762451869004,0.69,157.36,157.32,7.92583908]
[1762451869206,0.69,157.35,157.32,7.92583908]
[1762451869406,7.04487773,157.36,157.32,7.92583908]
[1762451869631,14.97071681,157.36,157.31,72.34259234]
[1762451869815,7.04487773,157.36,157.32,7.92583908]
[1762451870513,0.69,157.35,157.32,7.92583908]
[1762451870707,7.04487773,157.36,157.32,14.28221924]
[1762451870898,0.69,157.35,157.32,7.92583908]
[1762451871323,89.25487773,157.36,157.32,14.28230783]
[1762451871505,89.94487773,157.36,157.32,14.28230783]
[1762451871707,89.94487773,157.36,157.33,7.92583908]
[1762451871905,0.69,157.35,157.33,7.92583908]
[1762451872131,0.69,157.35,157.32,14.28230783]
[1762451872332,0.69,157.35,157.31,65.46583908]
[1762451872498,0.69,157.35,157.31,71.82268578]
[1762451872704,14.97131554,157.35,157.31,57.54]
[1762451872922,0.67,157.34,157.31,57.54]
[1762451873126,0.67,157.34,157.31,71.82261346]
[1762451873529,0.67,157.34,157.31,7.54]
[1762451873742,0.67,157.34,157.31,15.46583908]
[1762451874229,0.67,157.34,157.3,7.92583908]
[1762451874413,6.35647088,157.32,157.29,58.12583908]
[1762451874625,6.35647088,157.32,157.29,65.66583908]
[1762451874935,7.02647088,157.32,157.29,65.66583908]
[1762451876031,0.67,157.32,157.29,72.02343213]
[1762451876212,0.67,157.32,157.29,65.66583908]
[1762451876916,0.67,157.32,157.29,72.02349212]
[1762451877324,0.67,157.32,157.3,7.92583908]
[1762451877932,89.92498036,157.36,157.31,8.44583908]
[1762451878132,89.92498036,157.36,157.33,7.92583908]
[1762451878334,89.92498036,157.36,157.31,7.92583908]
[1762451878335,0.67,157.35,157.31,7.92583908]
[1762451878708,7.02560713,157.35,157.31,7.92583908]
[1762451878913,7.02560713,157.35,157.31,14.28263992]
[1762451879114,0.67,157.34,157.31,14.28263992]
[1762451879307,0.67,157.34,157.31,7.92583908]
[1762451879532,82.9,157.33,157.29,72.02343428]
[1762451879735,82.9,157.33,157.29,87.91764243]
[1762451880049,82.9,157.33,157.32,7.92583908]
[1762451880440,82.9,157.33,157.32,8.44583908]
[1762451880647,82.9,157.33,157.32,14.28230996]
[1762451880843,82.9,157.38,157.33,50.0]
[1762451881038,82.9,157.38,157.35,7.92583908]
[1762451881239,82.9,157.38,157.37,7.92583908]
[1762451882948,82.9,157.38,157.36,7.92583908]
[1762451883251,0.67,157.37,157.34,15.46583908]
[1762451883454,0.67,157.37,157.35,7.92583908]
[1762451884252,0.67,157.37,157.34,21.8214693]
[1762451884549,0.67,157.37,157.32,11.39957072]
[1762451884755,6.3548551,157.36,157.33,7.54]
[1762451884936,21.18681683,157.36,157.3,5.04313404]
[1762451885255,9.78882769,157.34,157.3,7.54]
[1762451885634,0.67,157.33,157.3,7.54]
[1762451886359,0.79415501,157.4,157.32,5.04313404]
[1762451886556,68.78068046,157.51,157.34,5.04313404]
[1762451886557,0.67,157.37,157.34,5.04313404]
[1762451886730,7.02474323,157.37,157.32,6.35647088]
[1762451887059,9.78882769,157.36,157.32,5.04313404]
[1762451887234,10.45882769,157.36,157.32,5.04313404]
[1762451887435,0.67,157.35,157.33,5.04313404]
[1762451888158,0.67,157.35,157.32,5.04313404]
[1762451888956,0.67,157.35,157.33,5.04313404]
[1762451890051,82.9,157.34,157.33,5.04313404]
[1762451890356,82.9,157.34,157.32,2.15223817]
[1762451890931,83.57,157.34,157.32,2.15223817]
[1762451891730,82.9,157.34,157.33,2.15223817]
[1762451892130,83.57,157.34,157.33,2.15223817]
[1762451892353,89.92566289,157.34,157.3,13.89717302]
[1762451892529,0.67,157.33,157.32,2.15223817]
[1762451893457,89.25567398,157.34,157.32,2.15223817]
[1762451893659,0.67,157.33,157.3,7.54]
[1762451893853,9.78882769,157.32,157.29,0.2]
[1762451894354,0.67,157.31,157.29,2.35223817]
[1762451894558,26.94739947,157.35,157.3,2.15223817]
[1762451894742,0.67,157.34,157.31,2.15223817]
[1762451895155,7.02573374,157.34,157.31,2.15223817]
[1762451895935,0.67,157.33,157.3,8.50940254]
[1762451897362,0.67,157.33,157.3,2.15223817]
[1762451898561,0.67,157.39,157.32,102.15223817]
[1762451898741,0.67,157.39,157.36,2.15223817]
[1762451898949,82.9,157.38,157.37,2.15223817]
[1762451899540,82.9,157.38,157.36,2.15223817]
[1762451899956,83.57,157.38,157.36,2.15223817]
[1762451900569,83.57,157.38,157.37,2.15223817]
[1762451900753,82.9,157.38,157.37,9.69223817]
[1762451901546,98.77937839,157.44,157.37,16.04668946]
[1762451901847,93.35882769,157.43,157.4,2.15223817]
[1762451902241,0.67,157.42,157.4,2.15223817]
[1762451904851,99.04116853,157.43,157.39,6.35361578]
[1762451904852,82.9,157.43,157.41,2.67223817]
[1762451905061,167.11729464,157.56,157.41,2.67223817]
[1762451905062,0.71,157.46,157.42,2.15223817]
[1762451905272,0.71,157.46,157.45,2.15223817]
[1762451905578,0.71,157.46,157.44,2.15223817]
[1762451906173,10.49882769,157.49,157.45,9.69223817]
[1762451906351,83.61,157.51,157.48,2.15223817]
[1762451906556,83.61,157.51,157.49,2.15223817]
[1762451907053,0.71,157.5,157.47,2.15223817]
[1762451907273,0.71,157.5,157.48,2.15223817]
[1762451909474,82.9,157.51,157.49,2.15223817]
[1762451909790,83.61,157.51,157.49,2.15223817]
[1762451910156,82.9,157.51,157.5,2.15223817]